bitfinex-derivatives/quotes_SOLF0:USTF0_20250416
["timestamp","ask_amount","ask_price","bid_price","bid_amount"]
[1744796640526,6.91181541,125.03,125.01,2.1932]
[1744796640933,14.91081541,125.03,125.01,2.1932]
[1744796641230,14.91081541,125.03,125.0,2.21394181]
[1744796641231,6.91181541,125.03,125.0,8.05714181]
[1744796641433,14.91071541,125.03,125.0,8.05714181]
[1744796641932,14.85709653,125.02,125.0,0.05664181]
[1744796642727,14.85759653,125.01,125.0,0.05664181]
[1744796645234,18.72733461,125.01,125.0,0.05664181]
[1744796645728,38.2996,125.02,125.0,0.05664181]
[1744796647834,7.9999,125.01,125.0,0.05664181]
[1744796649538,38.2996,125.02,125.0,0.05664181]
[1744796652139,7.9999,125.01,125.0,0.05664181]
[1744796652439,30.3,125.02,125.0,0.05664181]
[1744796652739,38.2996,125.02,125.0,0.05664181]
[1744796655738,30.3,125.02,125.0,0.05664181]
[1744796655945,0.05411888,125.03,125.0,0.05664181]
[1744796656137,30.28,125.05,125.0,0.05664181]
[1744796656943,7.9984,125.04,125.01,7.9996]
[1744796657438,8.05684366,125.04,125.01,7.9996]
[1744796657633,7.9989,125.03,125.0,8.05694181]
[1744796658445,7.9989,125.03,125.01,7.9998]
[1744796659747,0.05844366,125.04,125.0,0.05664181]
[1744796660445,7.999,125.03,125.0,8.05674181]
[1744796662245,7.999,125.03,125.01,7.9999]
[1744796662546,7.9994,125.02,125.0,8.05684181]
[1744796663348,7.999,125.03,125.0,8.05684181]
[1744796663545,0.05844366,125.04,125.0,0.05664181]
[1744796664349,0.05844366,125.04,125.02,7.999]
[1744796664550,0.05844366,125.04,125.0,0.05664181]
[1744796665051,0.05844366,125.04,125.02,7.9988]
[1744796666052,0.05844366,125.04,125.03,7.9987]
[1744796670555,0.05844366,125.04,125.02,7.999]
[1744796671255,0.05844366,125.04,125.0,6.91533741]
[1744796671555,0.05844366,125.04,125.02,7.999]
[1744796672658,0.05844366,125.04,125.03,7.9987]
[1744796673262,0.05844366,125.04,125.02,7.999]
[1744796673762,8.05644366,125.04,125.02,7.999]
[1744796674063,6.8586956,125.03,125.0,0.05664181]
[1744796674365,14.8576956,125.03,125.0,0.05664181]
[1744796674862,14.8576956,125.03,125.0,8.05684181]
[1744796675358,7.9996,125.02,125.0,0.05664181]
[1744796675553,6.8586956,125.03,125.0,0.05664181]
[1744796676162,7.9997,125.02,125.0,0.05664181]
[1744796679158,6.8586956,125.03,125.0,8.05714181]
[1744796679466,14.8576956,125.03,125.0,8.05714181]
[1744796680169,7.9994,125.02,125.0,8.05714181]
[1744796681264,14.8576956,125.03,125.0,8.05714181]
[1744796681866,6.8586956,125.03,125.01,7.9996]
[1744796683262,14.8573956,125.03,125.0,0.05664181]
[1744796683462,14.8573956,125.03,125.0,8.05684181]
[1744796684066,6.8586956,125.03,125.0,0.05664181]
[1744796684266,0.05844366,125.04,125.0,0.05664181]
[1744796685267,7.9989,125.03,125.0,8.05694181]
[1744796685967,6.8586956,125.03,125.0,0.05664181]
[1744796686266,6.8586956,125.01,125.0,0.05664181]
[1744796687165,14.8585956,125.01,125.0,0.05664181]
[1744796699974,6.8586956,125.01,124.94,30.26]
[1744796700277,6.8586956,124.98,124.94,37.1186956]
[1744796700472,6.8586956,124.98,124.96,8.0028]
[1744796700767,14.8605956,124.98,124.96,8.0028]
[1744796701178,14.91350173,124.98,124.96,8.05729397]
[1744796701673,14.91350173,124.98,124.96,0.05449397]
[1744796701873,14.8611956,124.97,124.96,0.05449397]
[1744796703969,14.91360173,124.98,124.96,0.05449397]
[1744796704174,0.05290613,124.98,124.96,0.05449397]
[1744796704374,8.05480613,124.98,124.96,0.05449397]
[1744796704575,14.91350173,124.98,124.96,0.05449397]
[1744796705880,0.05290613,124.98,124.97,8.0025]
[1744796706178,30.26,124.99,124.96,6.91318957]
[1744796706376,37.0986956,125.02,124.98,8.0019]
[1744796706874,30.24,125.02,125.0,8.0003]
[1744796707380,30.24,125.02,125.0,0.05612314]
[1744796707381,0.05587665,125.02,125.0,0.05612314]
[1744796707580,0.05587665,125.02,125.01,7.9996]
[1744796707875,6.8586956,125.07,125.01,6.8586956]
[1744796708080,615.1599956,125.08,125.04,7.9978]
[1744796708279,6.8586956,125.06,125.02,6.8586956]
[1744796708577,6.8586956,125.06,125.01,6.8586956]
[1744796708780,6.8586956,125.05,125.01,6.8586956]
[1744796708975,6.8586956,125.05,125.02,0.05255199]
[1744796708976,14.90848159,125.05,125.02,0.05255199]
[1744796709475,6.91068159,125.05,125.02,0.05255199]
[1744796709776,6.8586956,125.04,125.02,0.05255199]
[1744796710883,14.8570956,125.04,125.02,0.05255199]
[1744796711185,6.8586956,125.04,125.02,0.05255199]
[1744796711485,7.9987,125.03,125.02,0.05255199]
[1744796712079,14.8573956,125.03,125.02,0.05255199]
[1744796712986,6.8586956,125.04,125.02,0.05255199]
[1744796714282,7.9987,125.03,125.02,0.05255199]
[1744796714986,14.8569956,125.04,125.02,0.05255199]
[1744796715587,7.9983,125.04,125.02,8.05175199]
[1744796717288,7.9983,125.04,125.02,0.05255199]
[1744796717686,7.9987,125.03,125.02,0.05255199]
[1744796719387,14.8573956,125.03,125.02,0.05255199]
[1744796720888,7.9987,125.03,125.02,0.05255199]
[1744796728190,37.15068159,125.05,125.02,0.05255199]
[1744796728392,30.29198599,125.05,125.02,0.05255199]
[1744796728591,30.29198599,125.05,125.02,6.91124759]
[1744796728793,30.29198599,125.05,125.03,7.9982]
[1744796729092,37.15068159,125.05,125.02,0.05255199]
[1744796729292,45.14838159,125.05,125.02,8.05185199]
[1744796730497,37.15068159,125.05,125.03,7.9985]
[1744796730695,30.29198599,125.05,125.03,7.9985]
[1744796732392,38.28938599,125.05,125.03,7.9985]
[1744796733091,30.29198599,125.05,125.03,7.9985]
[1744796733795,30.29198599,125.05,125.03,6.8586956]
[1744796734196,30.29198599,125.05,125.04,7.998]
[1744796734400,0.05198599,125.05,125.04,7.998]
[1744796739102,30.2,125.08,125.06,7.9965]
[1744796739403,30.2,125.08,125.03,13.1265956]
[1744796739602,37.0586956,125.08,125.04,7.9977]
[1744796739802,6.8586956,125.07,125.02,30.2]
[1744796740002,7.9971,125.06,125.02,30.2]
[1744796740402,0.06079561,125.05,125.04,7.998]
[1744796755813,0.06079561,125.05,125.03,14.9075557]
[1744796756013,0.06079561,125.05,125.03,8.0488601]
[1744796756915,0.06079561,125.05,125.04,7.998]
[1744796759514,30.2,125.08,125.06,7.9965]
[1744796759816,38.1955,125.08,125.06,7.9965]
[1744796760313,7.9971,125.06,125.02,30.2]
[1744796760610,7.9971,125.06,124.97,4.3921]
[1744796760816,0.05478214,125.05,125.03,0.0512341]
[1744796761010,8.05218214,125.05,125.02,7.9989]
[1744796761217,8.05218214,125.05,125.03,0.05289684]
[1744796761515,0.05478214,125.05,125.03,0.05289684]
[1744796761722,0.05478214,125.05,125.04,14.8566956]
[1744796762017,30.2,125.08,125.04,6.8586956]
[1744796762220,38.1956,125.08,125.05,7.9971]
[1744796763124,38.252362,125.08,125.05,7.9971]
[1744796763319,7.9965,125.07,125.04,14.8564956]
[1744796763515,6.8586956,125.06,125.03,0.05289684]
[1744796764020,7.9974,125.05,125.03,8.05129684]
[1744796764518,8.05740677,125.05,125.03,8.05129684]
[1744796765121,8.05740677,125.05,125.03,0.05289684]
[1744796766225,0.06000677,125.05,125.03,8.05139684]
[1744796766718,0.06000677,125.05,125.03,0.05289684]
[1744796767223,8.05770677,125.05,125.03,0.05289684]
[1744796769325,8.05770677,125.05,125.03,8.05149684]
[1744796769927,8.05770677,125.05,125.03,0.05289684]
[1744796771527,8.05770677,125.05,125.03,8.05139684]
[1744796772327,14.8566956,125.04,125.03,0.05289684]
[1744796777728,7.9996,125.02,124.99,8.0009]
[1744796778027,6.8586956,125.01,124.96,37.0386956]
[1744796778227,6.8586956,125.0,124.96,30.18]
[1744796778428,14.8592956,125.0,124.97,8.0019]
[1744796778930,14.92036145,125.0,124.97,8.05409397]
[1744796779331,14.92036145,125.0,124.98,8.0018]
[1744796779529,6.8586956,124.99,124.97,0.05219397]
[1744796779829,6.8586956,124.98,124.97,0.05219397]
[1744796780026,14.8605956,124.98,124.97,0.05219397]
[1744796780232,6.8586956,124.98,124.94,8.004]
[1744796780432,6.8586956,124.96,124.94,8.004]
[1744796781330,14.92133286,124.96,124.94,8.06303006]
[1744796781836,8.0038,124.95,124.94,0.05903006]
[1744796782344,45.12153286,124.96,124.94,0.05903006]
[1744796782542,37.11813286,124.96,124.94,0.05903006]
[1744796784142,8.0038,124.95,124.94,0.05903006]
[1744796785149,14.8624956,124.95,124.94,0.05903006]
[1744796787749,6.8586956,124.95,124.88,30.2]
[1744796787948,6.8586956,124.9,124.85,6.4317]
[1744796788251,6.8586956,124.9,124.85,13.2903956]
[1744796788851,14.8660956,124.9,124.87,8.0086]
[1744796789155,6.91851236,124.89,124.87,8.0086]
[1744796789348,6.91851236,124.89,124.86,8.05980074]
[1744796791450,6.8586956,124.87,124.86,0.05050074]
[1744796792154,14.8675956,124.87,124.86,0.05050074]
[1744796793253,6.8586956,124.87,124.86,0.05050074]
[1744796794954,6.8586956,124.87,124.86,8.06010074]
[1744796795155,6.8586956,124.87,124.86,0.05050074]
[1744796798554,6.8586956,124.87,124.86,8.06010074]
[1744796798754,6.8586956,124.87,124.86,0.05050074]
[1744796799956,37.0586956,124.88,124.86,0.05050074]
[1744796800160,30.2,124.88,124.86,0.05050074]
[1744796801062,30.2,124.88,124.87,8.0089]
[1744796801464,0.05981676,124.89,124.88,8.0083]
[1744796801659,37.0586956,124.94,124.88,6.8586956]
[1744796801966,37.0586956,124.94,124.89,6.8586956]
[1744796802266,14.8637956,124.93,124.91,8.0063]
[1744796802766,14.91740278,124.93,124.91,8.0655859]
[1744796803766,6.8586956,124.92,124.91,0.0592859]
[1744796804668,14.8643956,124.92,124.91,0.0592859]
[1744796808272,6.8586956,124.92,124.84,41.1821956]
[1744796808471,6.8586956,124.89,124.84,41.1821956]
[1744796808871,14.8662956,124.89,124.84,41.1821956]
[1744796809272,6.9112021,124.88,124.85,0.05991295]
[1744796809475,6.8586956,124.87,124.85,0.05991295]
[1744796809771,6.8586956,124.86,124.85,0.05991295]
[1744796811166,14.8682956,124.86,124.85,0.05991295]
[1744796812171,6.8586956,124.86,124.85,0.05991295]
[1744796813675,14.8682956,124.86,124.85,0.05991295]
[1744796814074,8.0109,124.84,124.81,8.0123]
[1744796814376,14.8695956,124.84,124.81,8.0123]
[1744796814673,6.8586956,124.84,124.82,8.0121]
[1744796814874,6.8586956,124.84,124.79,11.1613956]
[1744796815275,0.05609393,124.83,124.81,8.0124]
[1744796815872,0.05609393,124.83,124.8,0.05524913]
[1744796816075,6.91478953,124.83,124.8,0.05524913]
[1744796816570,6.8586956,124.81,124.8,0.05524913]
[1744796817873,14.8714956,124.81,124.8,0.05524913]
[1744796818375,6.8586956,124.81,124.8,0.05524913]
[1744796818573,45.0711956,124.82,124.8,0.05524913]
[1744796820076,6.8586956,124.81,124.8,0.05524913]
[1744796820674,14.8714956,124.81,124.8,0.05524913]
[1744796820873,6.8586956,124.81,124.73,36.5746]
[1744796821077,6.8586956,124.76,124.73,6.3746]
[1744796821271,6.8586956,124.76,124.73,14.3923]
[1744796821774,14.8750956,124.76,124.73,2.2064]
[1744796822077,6.8586956,124.75,124.73,0.06112987]
[1744796822674,0.0568286,124.76,124.73,0.06112987]
[1744796822882,0.0568286,124.76,124.74,8.0169]
[1744796823181,0.0568286,124.76,124.73,0.06112987]
[1744796823778,10.76792052,124.75,124.73,0.06112987]
[1744796823975,30.22,124.74,124.73,0.06112987]
[1744796826279,30.22,124.74,124.73,8.07902987]
[1744796826981,30.22,124.74,124.73,0.06112987]
[1744796827382,38.2373,124.74,124.73,0.06112987]
[1744796828075,8.0188,124.72,124.67,2.1384]
[1744796828276,30.22,124.74,124.67,2.1384]
[1744796828779,8.0189,124.72,124.67,2.1384]
[1744796828979,10.76792052,124.73,124.67,2.1384]
[1744796829181,10.82640264,124.71,124.68,0.05758936]
[1744796829378,30.2,124.7,124.68,0.05758936]
[1744796829879,8.0205,124.69,124.68,0.05758936]
[1744796830280,18.78842052,124.69,124.68,0.05758936]
[1744796830475,38.2205,124.7,124.68,0.05758936]
[1744796830882,30.2,124.7,124.68,0.05758936]
[1744796832080,30.2,124.7,124.68,8.07868936]
[1744796832379,10.76792052,124.79,124.68,49.06550988]
[1744796832683,8.0176,124.74,124.69,2.108]
[1744796833184,8.0179,124.73,124.69,2.108]
[1744796833578,0.05873532,124.72,124.7,8.07632213]
[1744796833882,0.05873532,124.72,124.7,0.05682213]
[1744796834180,0.05873532,124.72,124.7,8.07622213]
[1744796834380,0.05873532,124.72,124.7,0.05682213]
[1744796835280,0.05873532,124.72,124.7,8.07632213]
[1744796835787,0.05873532,124.72,124.71,8.0192]
[1744796836681,0.05873532,124.72,124.7,8.07632213]
[1744796836883,0.05873532,124.72,124.7,0.05682213]
[1744796837188,0.05873532,124.72,124.71,8.0192]
[1744796844088,30.22,124.79,124.71,30.22]
[1744796844288,30.22,124.79,124.72,2.1707]
[1744796844491,30.22,124.79,124.74,8.0167]
[1744796844492,8.0154,124.77,124.74,8.0167]
[1744796844681,10.76792052,124.78,124.72,2.1707]
[1744796845085,10.76792052,124.78,124.72,8.0182]
[1744796845288,0.0572254,124.76,124.74,0.05672985]
[1744796845586,41.04514592,124.76,124.74,0.05672985]
[1744796846286,30.2772254,124.76,124.74,0.05672985]
[1744796847891,8.0166,124.75,124.74,0.05672985]
[1744796848286,41.04514592,124.76,124.69,6.3533]
[1744796848597,10.76792052,124.74,124.7,8.0198]
[1744796848985,10.76792052,124.74,124.69,14.3735]
[1744796849395,0.05623769,124.73,124.7,0.05512227]
[1744796849594,10.76792052,124.72,124.7,0.05512227]
[1744796849892,10.76792052,124.7,124.63,36.5141]
[1744796850092,10.76792052,124.68,124.63,36.5141]
[1744796850485,10.76792052,124.68,124.63,6.2941]
[1744796850686,8.0227,124.66,124.63,14.3181]
[1744796850885,0.06138904,124.67,124.64,0.0581208]
[1744796851098,30.28138904,124.67,124.64,0.0581208]
[1744796851893,8.0228,124.66,124.64,0.0581208]
[1744796852396,8.0231,124.65,124.64,0.0581208]
[1744796853693,8.0247,124.63,124.6,8.026]
[1744796853998,30.22,124.64,124.58,6.2941]
[1744796854202,38.2438,124.64,124.61,8.0254]
[1744796854387,30.22,124.64,124.61,8.0254]
[1744796854897,30.27187532,124.64,124.61,8.07971311]
[1744796855094,8.0244,124.63,124.61,0.05431311]
[1744796855294,30.27187532,124.64,124.61,0.05431311]
[1744796855598,38.29587532,124.64,124.61,8.07961311]
[1744796856397,30.27187532,124.64,124.62,8.025]
[1744796856592,30.27187532,124.64,124.61,0.05431311]
[1744796857098,10.76792052,124.63,124.61,0.05431311]
[1744796857399,8.025,124.62,124.61,0.05431311]
[1744796857799,30.27187532,124.64,124.61,0.05431311]
[1744796858000,8.0247,124.63,124.61,0.05431311]
[1744796858700,8.025,124.62,124.61,0.05431311]
[1744796861501,10.76792052,124.63,124.55,2.1947]
[1744796861794,10.76792052,124.6,124.51,34.6734]
[1744796861999,8.0293,124.56,124.53,8.0303]
[1744796862198,30.4,124.58,124.51,2.1095]
[1744796862791,0.0569512,124.56,124.53,0.05062789]
[1744796863398,0.0569512,124.56,124.55,8.0295]
[1744796864004,0.0569512,124.56,124.54,8.0298]
[1744796864302,0.0569512,124.56,124.53,0.05062789]
[1744796864703,0.0569512,124.56,124.54,8.0301]
[1744796865205,8.0301,124.54,124.53,0.05062789]
[1744796865403,30.4,124.55,124.53,0.05062789]
[1744796866803,0.0569512,124.56,124.53,0.05062789]
[1744796867401,0.0569512,124.56,124.54,8.03]
[1744796867802,0.0569512,124.56,124.53,0.05062789]
[1744796868503,8.0295,124.55,124.53,0.05062789]
[1744796868708,0.0569512,124.56,124.53,0.05062789]
[1744796869809,8.0301,124.54,124.53,0.05062789]
[1744796870107,18.79802052,124.54,124.53,0.05062789]
[1744796871312,8.0301,124.54,124.53,0.05062789]
[1744796872409,18.79802052,124.54,124.53,0.05062789]
[1744796874211,18.79802052,124.54,124.53,2.789e-05]
[1744796874409,29.55584104,124.54,124.4,608.34]
[1744796874715,10.76792052,124.49,124.44,8.0363]
[1744796874910,8.0345,124.48,124.44,8.0363]
[1744796875213,8.0345,124.48,124.41,6.3785]
[1744796875414,8.0345,124.48,124.44,8.036]
[1744796875612,0.06057184,124.46,124.44,8.036]
[1744796875807,0.06057184,124.46,124.45,8.0359]
[1744796876012,41.18792052,124.55,124.44,10.76792052]
[1744796876215,41.18792052,124.55,124.46,10.76792052]
[1744796876409,41.18792052,124.55,124.49,8.033]
[1744796876610,41.18792052,124.55,124.47,2.1543]
[1744796876914,8.0311,124.53,124.49,8.0329]
[1744796877111,0.05784431,124.52,124.5,0.05399688]
[1744796877615,0.05784431,124.52,124.51,8.0321]
[1744796877814,41.18792052,124.59,124.5,10.8219174]
[1744796878018,2.1377,124.61,124.52,10.76792052]
[1744796878207,10.1636,124.61,124.57,8.0281]
[1744796878919,0.061039,124.6,124.58,0.05778697]
[1744796879617,0.061039,124.6,124.58,8.08508697]
[1744796880218,0.061039,124.6,124.58,0.05778697]
[1744796881419,8.087339,124.6,124.58,0.05778697]
[1744796881619,0.061039,124.6,124.58,0.05778697]
[1744796882621,0.061039,124.6,124.59,8.0269]
[1744796882816,34.663,124.66,124.58,0.05778697]
[1744796883120,34.663,124.66,124.61,8.0254]
[1744796883719,8.0234,124.65,124.61,8.0254]
[1744796884120,34.663,124.66,124.62,0.05471112]
[1744796884121,0.0564855,124.64,124.62,0.05471112]
[1744796885122,0.0564855,124.64,124.63,8.0243]
[1744796886019,30.42,124.69,124.66,8.0224]
[1744796886220,30.42,124.69,124.62,32.5808]
[1744796886419,8.0213,124.68,124.62,32.5808]
[1744796886623,30.42,124.69,124.62,32.5808]
[1744796886825,17.2668037,124.68,124.62,30.42]
[1744796887220,0.06056921,124.66,124.64,0.05831326]
[1744796887419,8.08326921,124.66,124.64,0.05831326]
[1744796887719,0.06056921,124.66,124.64,0.05831326]
[1744796889127,8.0231,124.65,124.64,0.05831326]
[1744796889729,38.60326921,124.66,124.64,0.05831326]
[1744796890226,8.0231,124.65,124.64,0.05831326]
[1744796893831,30.58056921,124.66,124.64,0.05831326]
[1744796894124,0.06056921,124.66,124.64,0.05831326]
[1744796894728,30.52,124.69,124.66,8.0218]
[1744796895834,38.60010619,124.69,124.66,8.0218]
[1744796896032,30.57930619,124.69,124.65,8.0228]
[1744796897233,17.2668037,124.68,124.64,0.05831326]
[1744796898330,8.0231,124.65,124.64,0.05831326]
[1744796903141,8.0243,124.64,124.6,2.0629]
[1744796903334,8.0243,124.64,124.61,8.0253]
[1744796904442,8.07777235,124.64,124.61,8.08249085]
[1744796904742,8.0245,124.63,124.61,0.05719085]
[1744796905244,0.05347235,124.64,124.61,0.05719085]
[1744796905446,8.025,124.62,124.61,0.05719085]
[1744796907738,38.545,124.62,124.61,0.05719085]
[1744796907943,10.78812528,124.61,124.56,30.52]
[1744796908341,8.027,124.59,124.54,6.2976]
[1744796908540,10.78812528,124.59,124.54,6.2976]
[1744796909043,0.0586551,124.58,124.56,8.0288]
[1744796911345,0.0586551,124.58,124.55,8.08801725]
[1744796911646,8.0864551,124.58,124.55,8.08801725]
[1744796911847,0.0586551,124.58,124.55,0.05891725]
[1744796912041,0.0586551,124.58,124.57,8.0282]
[1744796912749,0.0586551,124.58,124.55,0.05891725]
[1744796913542,8.0865551,124.58,124.55,8.08801725]
[1744796914751,0.0586551,124.58,124.56,8.0286]
[1744796914945,0.0586551,124.58,124.55,0.05891725]
[1744796915252,0.0586551,124.58,124.56,8.0289]
[1744796915446,0.0586551,124.58,124.55,0.05891725]
[1744796915850,0.0586551,124.58,124.56,8.0289]
[1744796916052,30.52,124.62,124.55,0.05891725]
[1744796916252,30.52,124.62,124.56,30.52]
[1744796916549,30.52,124.62,124.58,8.0273]
[1744796916750,8.0257,124.61,124.58,8.0273]
[1744796916957,30.52,124.62,124.56,30.52]
[1744796917155,38.5453,124.62,124.56,30.52]
[1744796917355,0.05722688,124.6,124.58,0.05383507]
[1744796918655,8.0269,124.59,124.58,0.05383507]
[1744796921554,8.0269,124.59,124.51,577.72]
[1744796921555,8.029,124.56,124.49,30.4]
[1744796921754,47.6779302,124.6,124.55,8.0294]
[1744796922354,8.0273,124.59,124.55,8.0294]
[1744796922654,47.6779302,124.6,124.53,30.4]
[1744796922853,0.05103652,124.58,124.56,0.0519512]
[1744796923060,0.05103652,124.58,124.56,8.0803512]
[1744796927569,8.0282,124.57,124.56,0.0519512]
[1744796928970,0.05103652,124.58,124.56,0.0519512]
[1744796929167,47.6779302,124.63,124.56,30.4519512]
[1744796929667,8.0261,124.61,124.57,8.0281]
[1744796930069,8.0261,124.61,124.57,8.0276]
[1744796930375,0.05556413,124.6,124.58,0.06132386]
[1744796931171,8.08196413,124.6,124.58,0.06132386]
[1744796932267,8.0269,124.59,124.58,0.06132386]
[1744796933768,0.05556413,124.6,124.58,0.06132386]
[1744796935269,8.0269,124.59,124.58,0.06132386]
[1744796940578,18.82245634,124.59,124.58,0.06132386]
[1744796942178,8.0289,124.56,124.53,2.1556]
[1744796942771,8.0295,124.55,124.53,10.1861]
[1744796943074,8.0295,124.55,124.53,2.1556]
[1744796943376,8.08064769,124.55,124.53,0.05093906]
[1744796943974,8.0301,124.54,124.53,0.05093906]
[1744796944778,8.0318,124.52,124.48,36.7014]
[1744796944968,10.79555634,124.53,124.48,14.3351]
[1744796945174,10.79555634,124.53,124.48,6.3014]
[1744796945175,8.0317,124.52,124.48,6.3014]
[1744796945478,30.4,124.54,124.49,30.4]
[1744796945673,38.4305,124.54,124.5,8.0323]
[1744796945869,0.05965464,124.53,124.5,8.09365506]
[1744796946279,8.09085464,124.53,124.5,8.09365506]
[1744796947082,8.09085464,124.53,124.5,0.06135506]
[1744796947380,8.0315,124.52,124.5,0.06135506]
[1744796947681,10.79555634,124.51,124.5,0.06135506]
[1744796947982,10.85521098,124.53,124.5,0.06135506]
[1744796948180,18.88651098,124.53,124.5,0.06135506]
[1744796948378,10.85521098,124.53,124.5,0.06135506]
[1744796948779,8.0318,124.52,124.5,0.06135506]
[1744796950185,8.0318,124.52,124.5,8.09395506]
[1744796950682,8.0318,124.52,124.5,0.06135506]
[1744796950986,18.82765634,124.51,124.5,0.06135506]
[1744796952890,8.0317,124.52,124.5,0.06135506]
[1744796953285,10.85521098,124.53,124.5,0.06135506]
[1744796953486,8.0321,124.51,124.5,0.06135506]
[1744796953684,18.82765634,124.51,124.5,0.06135506]
[1744796953886,10.79555634,124.51,124.5,0.06135506]
[1744796954189,18.82765634,124.51,124.5,0.06135506]
[1744796954888,8.0337,124.49,124.46,38.435]
[1744796955188,10.79555634,124.49,124.45,8.0354]
[1744796955787,8.0344,124.48,124.45,8.0354]
[1744796956189,0.05445019,124.48,124.45,8.09467391]
[1744796956590,0.05445019,124.48,124.46,8.0352]
[1744796957091,8.08855019,124.48,124.46,8.0352]
[1744796957392,10.79555634,124.47,124.45,0.05927391]
[1744796957993,8.0353,124.46,124.45,0.05927391]
[1744796960094,8.036,124.45,124.42,8.0374]
[1744796960287,8.036,124.45,124.43,8.0372]
[1744796960492,8.036,124.45,124.4,30.42]
[1744796961091,10.79555634,124.47,124.4,30.42]
[1744796961397,0.05484825,124.44,124.41,0.05480115]
[1744796961695,0.05484825,124.44,124.42,8.0375]
[1744796961892,0.05484825,124.44,124.41,0.05480115]
[1744796962289,18.83315634,124.43,124.41,0.05480115]
[1744796963199,10.79555634,124.43,124.41,0.05480115]
[1744796965391,18.83325634,124.43,124.41,0.05480115]
[1744796965895,10.79555634,124.43,124.41,8.09330115]
[1744796966202,10.79555634,124.43,124.41,0.05480115]
[1744796966604,18.83275634,124.43,124.41,0.05480115]
[1744796966902,10.79555634,124.43,124.41,0.05480115]
[1744796967205,30.44,124.42,124.36,36.9549]
[1744796967403,10.79555634,124.41,124.36,36.9549]
[1744796967805,18.83435634,124.41,124.38,8.04]
[1744796968400,18.83435634,124.41,124.38,8.10168615]
[1744796968607,18.89601848,124.41,124.38,8.10168615]
[1744796968809,8.0392,124.4,124.38,0.06168615]
[1744796969307,10.85721848,124.41,124.38,0.06168615]
[1744796969605,0.06166214,124.41,124.38,0.06168615]
[1744796970102,10.85721848,124.41,124.38,0.06168615]
[1744796970302,0.06166214,124.41,124.38,0.06168615]
[1744796970708,0.06166214,124.41,124.39,8.0392]
[1744796972406,0.06166214,124.41,124.38,0.06168615]
[1744796972910,30.44,124.45,124.42,8.0375]
[1744796973105,41.23555634,124.45,124.39,34.7677]
[1744796973604,41.23555634,124.45,124.39,4.3277]
[1744796974109,0.05415089,124.43,124.41,0.05437571]
[1744796974812,0.05415089,124.43,124.41,8.09277571]
[1744796975408,0.05415089,124.43,124.42,8.0379]
[1744796976611,10.79555634,124.47,124.44,8.0366]
[1744796976811,30.44,124.48,124.44,8.0366]
[1744796977110,8.0351,124.47,124.44,8.0366]
[1744796977307,30.44,124.48,124.44,8.0366]
[1744796977508,30.44,124.48,124.43,8.0369]
[1744796977708,8.0352,124.47,124.39,15.12325634]
[1744796978013,30.44,124.48,124.44,0.05509619]
[1744796978210,30.44,124.48,124.44,8.09139619]
[1744796978414,10.85664365,124.47,124.44,0.05509619]
[1744796979008,8.0359,124.45,124.44,0.05509619]
[1744796979209,38.9559,124.45,124.44,0.05509619]
[1744796980815,30.92,124.45,124.44,0.05509619]
[1744796983018,38.9559,124.45,124.44,0.05509619]
[1744796986619,49.75145634,124.45,124.44,0.05509619]
[1744796986816,41.71555634,124.45,124.39,6.5426]
[1744796987222,41.71555634,124.45,124.41,8.0382]
[1744796987522,8.0369,124.44,124.39,6.5426]
[1744796987720,41.71555634,124.45,124.4,8.0388]
[1744796987922,0.05265045,124.43,124.4,8.0931703]
[1744796988518,8.08995045,124.43,124.4,8.0931703]
[1744796989523,0.05265045,124.43,124.41,8.0385]
[1744796990423,0.05265045,124.43,124.42,8.0379]
[1744796990620,30.9,124.48,124.4,0.0543703]
[1744796990820,30.9,124.48,124.41,30.9]
[1744796991423,8.0347,124.47,124.44,8.0361]
[1744796991617,30.9,124.48,124.44,8.0361]
[1744796991922,0.06068272,124.47,124.44,0.05445398]
[1744796992224,8.0356,124.46,124.44,0.05445398]
[1744796993324,8.09558272,124.47,124.44,0.05445398]
[1744796993722,0.06068272,124.47,124.44,0.05445398]
[1744796994524,8.0357,124.46,124.44,0.05445398]
[1744796995733,8.0359,124.45,124.44,0.05445398]
[1744796996030,41.69555634,124.45,124.39,6.5426]
[1744796996327,8.0379,124.42,124.39,6.5426]
[1744796996528,8.0379,124.42,124.39,14.5821]
[1744796997229,8.0906979,124.42,124.39,14.63692977]
[1744796997624,0.0527979,124.42,124.4,8.0391]
[1744796997826,0.0527979,124.42,124.39,6.59742977]